[Event "56th Biel Festival MTO 2023"]
[White "Gemelli,Romain"]
[Black "Schnepp,Gunnar"]
[Site "Biel"]
[Round "8.31"]
[Annotator "ChessBase"]
[Result "0-1"]
[Date "2023.07.26"]
[WhiteElo "2122"]
[BlackElo "2278"]
[PlyCount "68"]
[TimeControl "60"]

1. d4 {[%emt 0:0:0]} Nf6 {[%emt 0:0:0]} 2. c4 {[%emt 0:0:0]} c5 {[%emt 0:0:0]} 3. d5 {[%emt 0:0:0]} g6 {[%emt 0:0:0]} 4. Nc3 {[%emt 0:0:0]} Bg7 {[%emt 0:0:0]} 5. e4 {[%emt 0:0:0]} d6 {[%emt 0:0:0]} 6. Bd3 {[%emt 0:0:0]} O-O {[%emt 0:0:0]} 7. h3 {[%emt 0:0:0]} Na6 {[%emt 0:0:0]} 8. Nf3 {[%emt 0:0:0]} e6 {[%emt 0:0:0]} 9. O-O {[%emt 0:0:0]} Nc7 {[%emt 0:0:0]} 10. Re1 {[%emt 0:1:15]} Re8 {[%emt 0:0:8]} 11. a4 {[%emt 0:7:54]} Na6 {[%emt 0:4:38]} 12. Ra3 {[%emt 0:5:39]} Nb4 {[%emt 0:1:16]} 13. Bb1 {[%emt 0:0:53]} b6 {[%emt 0:9:46]} 14. Bf4 {[%emt 0:7:34]} a6 {[%emt 0:12:34]} 15. Qd2 {[%emt 0:15:29]} Ra7 {[%emt 0:1:41]} 16. Nd1 {[%emt 0:8:28]} Rae7 {[%emt 0:10:8]} 17. Rae3 {[%emt 0:5:56]} Nh5 {[%emt 0:4:23]} 18. Bg5 {[%emt 0:1:48]} f6 {[%emt 0:2:17]} 19. Bh4 {[%emt 0:0:26]} Bh6 {[%emt 0:1:20]} 20. Qc3 {[%emt 0:6:14]} Bxe3 {[%emt 0:7:40]} 21. Nxe3 {[%emt 0:2:8]} g5 {[%emt 0:6:18]} 22. Nxg5 {[%emt 0:2:46]} fxg5 {[%emt 0:0:21]} 23. Bxg5 {[%emt 0:0:6]} exd5 {[%emt 0:14:13]} 24. exd5 {[%emt 0:2:30]} Qc7 {[%emt 0:1:47]} 25. Bxe7 {[%emt 0:4:1]} Rxe7 {[%emt 0:0:15]} 26. Rf1 {[%emt 0:9:7]} Nf4 {[%emt 0:4:30]} 27. Qf6 {[%emt 0:1:47]} Rf7 {[%emt 0:0:49]} 28. Qg5+ {[%emt 0:0:10]} Kh8 {[%emt 0:0:24]} 29. Qh6 {[%emt 0:4:59]} Qe7 {[%emt 0:1:46]} 30. Re1 {[%emt 0:4:49]} Nbd3 {[%emt 0:3:11]} 31. Bxd3 {[%emt 0:2:16]} Nxd3 {[%emt 0:0:5]} 32. Re2 {[%emt 0:0:6]} Nf4 {[%emt 0:5:8]} 33. Re1 {[%emt 0:0:55]} Rf6 {[%emt 0:0:47]} 34. Qh4 {[%emt 0:0:29]} Nxh3+ {[%emt 0:1:10]} 0-1

[Event "56th Biel Festival MTO 2023"]
[White "Ermitsch,Magnus"]
[Black "Adocchio,Giampiero"]
[Site "Biel"]
[Round "8.32"]
[Annotator "ChessBase"]
[Result "1-0"]
[Date "2023.07.26"]
[WhiteElo "2232"]
[BlackElo "2165"]
[PlyCount "117"]
[TimeControl "60"]

1. e4 {[%emt 0:0:0]} e6 {[%emt 0:0:0]} 2. d4 {[%emt 0:0:0]} d5 {[%emt 0:0:0]} 3. Nc3 {[%emt 0:0:0]} Bb4 {[%emt 0:0:0]} 4. exd5 {[%emt 0:0:0]} exd5 {[%emt 0:0:0]} 5. Bd3 {[%emt 0:0:0]} Nf6 {[%emt 0:0:0]} 6. Nge2 {[%emt 0:0:0]} O-O {[%emt 0:0:0]} 7. O-O {[%emt 0:0:0]} Re8 {[%emt 0:0:0]} 8. Ng3 {[%emt 0:1:57]} c6 {[%emt 0:0:0]} 9. a3 {[%emt 0:1:46]} Bf8 {[%emt 0:0:0]} 10. Bg5 {[%emt 0:1:24]} Nbd7 {[%emt 0:5:16]} 11. Qf3 {[%emt 0:6:13]} h6 {[%emt 0:1:10]} 12. Bf4 {[%emt 0:0:53]} Nc5 {[%emt 0:4:52]} 13. Be5 {[%emt 0:2:53]} Nxd3 {[%emt 0:12:26]} 14. Bxf6 {[%emt 0:0:41]} Qxf6 {[%emt 0:0:5]} 15. Qxf6 {[%emt 0:0:13]} gxf6 {[%emt 0:0:6]} 16. cxd3 {[%emt 0:0:5]} Bd7 {[%emt 0:3:12]} 17. Rfe1 {[%emt 0:4:16]} Re6 {[%emt 0:4:55]} 18. Kf1 {[%emt 0:4:52]} Rae8 {[%emt 0:2:16]} 19. Nce2 {[%emt 0:1:7]} Bd6 {[%emt 0:18:32]} 20. Nh5 {[%emt 0:6:24]} Kf8 {[%emt 0:4:0]} 21. Neg3 {[%emt 0:3:33]} Rxe1+ {[%emt 0:3:29]} 22. Rxe1 {[%emt 0:2:26]} Rxe1+ {[%emt 0:2:45]} 23. Kxe1 {[%emt 0:0:1]} Ke7 {[%emt 0:0:19]} 24. h3 {[%emt 0:4:31]} a5 {[%emt 0:1:18]} 25. Ng7 {[%emt 0:1:53]} Bf4 {[%emt 0:8:23]} 26. N7f5+ {[%emt 0:1:18]} Ke6 {[%emt 0:11:20]} 27. Ne3 {[%emt 0:1:22]} Bd6 {[%emt 0:0:52]} 28. Ngf5 {[%emt 0:1:22]} Bf8 {[%emt 0:0:8]} 29. Kd2 {[%emt 0:7:56]} b6 {[%emt 0:1:57]} 30. Kc3 {[%emt 0:4:22]} Bc8 {[%emt 0:0:56]} 31. h4 {[%emt 0:1:9]} Ba6 {[%emt 0:1:12]} 32. Ng3 {[%emt 0:23:41]} Bc8 {[%emt 0:3:25]} 33. Nh5 {[%emt 0:0:46]} f5 {[%emt 0:6:57]} 34. Kd2 {[%emt 0:1:1]} Bb7 {[%emt 0:1:59]} 35. Ke2 {[%emt 0:1:51]} Ba8 {[%emt 0:2:2]} 36. Kf3 {[%emt 0:1:2]} Bb7 {[%emt 0:0:7]} 37. Ke2 {[%emt 0:2:56]} Bc8 {[%emt 0:1:42]} 38. f4 {[%emt 0:9:40]} Bd7 {[%emt 0:0:57]} 39. Kf3 {[%emt 0:1:29]} Bc8 {[%emt 0:0:50]} 40. Kf2 {[%emt 0:2:58]} Bd7 {[%emt 0:0:17]} 41. Ng3 {[%emt 0:0:0]} Kf6 {[%emt 0:0:0]} 42. h5 {[%emt 0:0:0]} Be6 {[%emt 0:0:0]} 43. Ne2 {[%emt 0:0:0]} Bg7 {[%emt 0:0:0]} 44. Nc2 {[%emt 0:0:0]} Ke7 {[%emt 0:0:0]} 45. Nc3 {[%emt 0:0:0]} Kd6 {[%emt 0:0:0]} 46. Na4 {[%emt 0:0:0]} b5 {[%emt 0:0:0]} 47. Nc3 {[%emt 0:0:0]} b4 {[%emt 0:0:13]} 48. axb4 {[%emt 0:0:0]} axb4 {[%emt 0:0:6]} 49. Ne2 {[%emt 0:0:0]} c5 {[%emt 0:0:46]} 50. Ke3 {[%emt 0:1:1]} b3 {[%emt 0:5:15]} 51. dxc5+ {[%emt 0:2:9]} Kxc5 {[%emt 0:0:9]} 52. Ncd4 {[%emt 0:4:55]} Kb4 {[%emt 0:0:46]} 53. Nc1 {[%emt 0:0:34]} Bxd4+ {[%emt 0:0:18]} 54. Kxd4 {[%emt 0:0:1]} f6 {[%emt 0:0:6]} 55. Ne2 {[%emt 0:1:30]} Bf7 {[%emt 0:1:43]} 56. Nc3 {[%emt 0:2:24]} Bxh5 {[%emt 0:0:7]} 57. Nxd5+ {[%emt 0:1:28]} Kb5 {[%emt 0:0:7]} 58. Nxf6 {[%emt 0:0:6]} Be2 {[%emt 0:0:31]} 59. Ng8 {[%emt 0:0:49]} 1-0

[Event "56th Biel Festival MTO 2023"]
[White "Urh,Zala"]
[Black "Matta,Vinay Kumar"]
[Site "Biel"]
[Round "8.33"]
[Annotator "ChessBase"]
[Result "1/2-1/2"]
[Date "2023.07.26"]
[WhiteElo "2231"]
[BlackElo "2111"]
[PlyCount "56"]
[TimeControl "60"]

1. d4 {[%emt 0:0:0]} Nf6 {[%emt 0:0:0]} 2. c4 {[%emt 0:0:0]} g6 {[%emt 0:0:0]} 3. g3 {[%emt 0:0:0]} Bg7 {[%emt 0:0:0]} 4. Bg2 {[%emt 0:0:0]} O-O {[%emt 0:0:0]} 5. Nc3 {[%emt 0:0:0]} a6 {[%emt 0:0:0]} 6. Nf3 {[%emt 0:0:0]} d5 {[%emt 0:0:0]} 7. cxd5 {[%emt 0:0:0]} Nxd5 {[%emt 0:0:0]} 8. O-O {[%emt 0:0:0]} Nxc3 {[%emt 0:0:0]} 9. bxc3 {[%emt 0:0:0]} c5 {[%emt 0:0:0]} 10. dxc5 {[%emt 0:0:0]} Qa5 {[%emt 0:0:0]} 11. Be3 {[%emt 0:0:3]} Bxc3 {[%emt 0:3:31]} 12. Rb1 {[%emt 0:9:5]} Nc6 {[%emt 0:4:50]} 13. Qb3 {[%emt 0:11:1]} Be6 {[%emt 0:12:14]} 14. Qxb7 {[%emt 0:13:33]} Bd5 {[%emt 0:16:33]} 15. Nd4 {[%emt 0:11:46]} Bxg2 {[%emt 0:4:36]} 16. Nxc6 {[%emt 0:0:17]} Bxc6 {[%emt 0:0:17]} 17. Qxc6 {[%emt 0:0:3]} Qxa2 {[%emt 0:0:12]} 18. Rb7 {[%emt 0:1:24]} Bf6 {[%emt 0:2:7]} 19. Qb6 {[%emt 0:3:43]} a5 {[%emt 0:4:20]} 20. c6 {[%emt 0:1:48]} Qe6 {[%emt 0:6:47]} 21. c7 {[%emt 0:13:59]} Qxb6 {[%emt 0:0:41]} 22. Bxb6 {[%emt 0:0:10]} a4 {[%emt 0:0:35]} 23. Rd1 {[%emt 0:8:4]} a3 {[%emt 0:0:50]} 24. Rd8 {[%emt 0:0:45]} a2 {[%emt 0:0:41]} 25. Rxa8 {[%emt 0:2:44]} Rxa8 {[%emt 0:0:7]} 26. Rb8+ {[%emt 0:0:10]} Rxb8 {[%emt 0:0:4]} 27. cxb8=Q+ {[%emt 0:0:7]} Kg7 {[%emt 0:0:4]} 28. Qa7 {[%emt 0:3:9]} a1=Q+ {[%emt 0:0:11]} 1/2-1/2

[Event "56th Biel Festival MTO 2023"]
[White "Kocharin,Timur"]
[Black "Adam,Rafael"]
[Site "Biel"]
[Round "8.34"]
[Annotator "ChessBase"]
[Result "1-0"]
[Date "2023.07.26"]
[WhiteElo "2225"]
[BlackElo "2117"]
[PlyCount "55"]
[TimeControl "60"]

1. e4 {[%emt 0:0:0]} e5 {[%emt 0:0:0]} 2. Nf3 {[%emt 0:0:0]} Nc6 {[%emt 0:0:0]} 3. Bc4 {[%emt 0:0:0]} Bc5 {[%emt 0:0:0]} 4. d3 {[%emt 0:0:0]} Nf6 {[%emt 0:0:0]} 5. Nc3 {[%emt 0:0:0]} h6 {[%emt 0:0:0]} 6. h3 {[%emt 0:0:0]} O-O {[%emt 0:0:0]} 7. g4 {[%emt 0:0:0]} Nh7 {[%emt 0:1:56]} 8. g5 {[%emt 0:18:23]} Nxg5 {[%emt 0:13:55]} 9. Nxg5 {[%emt 0:7:0]} hxg5 {[%emt 0:0:25]} 10. Nd5 {[%emt 0:7:2]} Nd4 {[%emt 0:18:55]} 11. h4 {[%emt 0:15:17]} gxh4 {[%emt 0:14:3]} 12. Qh5 {[%emt 0:8:27]} c6 {[%emt 0:14:26]} 13. Rg1 {[%emt 0:4:29]} cxd5 {[%emt 0:26:29]} 14. Bh6 {[%emt 0:15:28]} Ne6 {[%emt 0:3:35]} 15. Bxg7 {[%emt 0:2:55]} Bxf2+ {[%emt 0:0:39]} 16. Kxf2 {[%emt 0:6:7]} Qb6+ {[%emt 0:0:17]} 17. Kf3 {[%emt 0:2:11]} Nd4+ {[%emt 0:3:9]} 18. Kg2 {[%emt 0:0:24]} Qg6+ {[%emt 0:0:17]} 19. Qxg6 {[%emt 0:0:3]} fxg6 {[%emt 0:0:3]} 20. Bxf8 {[%emt 0:0:27]} dxc4 {[%emt 0:0:23]} 21. Bd6 {[%emt 0:0:52]} Nxc2 {[%emt 0:0:13]} 22. Rac1 {[%emt 0:0:28]} cxd3 {[%emt 0:0:17]} 23. Kh2 {[%emt 0:0:57]} Kh7 {[%emt 0:1:37]} 24. Rcf1 {[%emt 0:0:37]} b6 {[%emt 0:0:16]} 25. Rf7+ {[%emt 0:0:12]} Kg8 {[%emt 0:0:23]} 26. Re7 {[%emt 0:0:12]} Ba6 {[%emt 0:1:30]} 27. Rxg6+ {[%emt 0:0:6]} Kf8 {[%emt 0:0:35]} 28. Rh7+ {[%emt 0:0:7]} 1-0

[Event "56th Biel Festival MTO 2023"]
[White "Matsumura,Cocoro"]
[Black "Ouellet,Maili-Jade"]
[Site "Biel"]
[Round "8.35"]
[Annotator "ChessBase"]
[Result "1/2-1/2"]
[Date "2023.07.26"]
[WhiteElo "2081"]
[BlackElo "2201"]
[PlyCount "192"]
[TimeControl "60"]

1. e4 {[%emt 0:0:0]} c5 {[%emt 0:0:0]} 2. Nf3 {[%emt 0:0:0]} d6 {[%emt 0:0:0]} 3. d4 {[%emt 0:0:0]} cxd4 {[%emt 0:0:0]} 4. Nxd4 {[%emt 0:0:0]} Nf6 {[%emt 0:0:0]} 5. Nc3 {[%emt 0:0:0]} a6 {[%emt 0:0:0]} 6. Bg5 {[%emt 0:0:0]} Nbd7 {[%emt 0:0:0]} 7. a3 {[%emt 0:0:0]} h6 {[%emt 0:0:0]} 8. Be3 {[%emt 0:0:0]} e6 {[%emt 0:0:0]} 9. Bc4 {[%emt 0:0:0]} Ne5 {[%emt 0:2:10]} 10. Ba2 {[%emt 0:2:0]} Qc7 {[%emt 0:1:0]} 11. Qe2 {[%emt 0:1:19]} b5 {[%emt 0:1:51]} 12. O-O-O {[%emt 0:4:39]} Be7 {[%emt 0:4:14]} 13. f4 {[%emt 0:2:7]} Nc6 {[%emt 0:13:1]} 14. Nxc6 {[%emt 0:18:52]} Qxc6 {[%emt 0:0:5]} 15. e5 {[%emt 0:6:32]} dxe5 {[%emt 0:3:0]} 16. fxe5 {[%emt 0:0:10]} Ne4 {[%emt 0:2:23]} 17. Nd5 {[%emt 0:2:48]} Bb7 {[%emt 0:4:11]} 18. Qg4 {[%emt 0:10:10]} exd5 {[%emt 0:22:38]} 19. Bxd5 {[%emt 0:0:33]} Qxd5 {[%emt 0:1:30]} 20. Rxd5 {[%emt 0:0:7]} Bxd5 {[%emt 0:0:8]} 21. Rd1 {[%emt 0:0:14]} Bc6 {[%emt 0:6:25]} 22. Qxg7 {[%emt 0:2:26]} Rf8 {[%emt 0:0:6]} 23. Qxh6 {[%emt 0:0:32]} Rc8 {[%emt 0:1:28]} 24. e6 {[%emt 0:2:59]} Bf6 {[%emt 0:5:48]} 25. Qh5 {[%emt 0:11:20]} Rc7 {[%emt 0:5:46]} 26. Qf5 {[%emt 0:4:50]} Rg8 {[%emt 0:15:2]} 27. Bb6 {[%emt 0:3:53]} Rb7 {[%emt 0:1:3]} 28. exf7+ {[%emt 0:15:17]} Kxf7 {[%emt 0:0:12]} 29. Bd8 {[%emt 0:1:13]} Rg6 {[%emt 0:4:26]} 30. h4 {[%emt 0:2:35]} Kg7 {[%emt 0:1:5]} 31. h5 {[%emt 0:0:59]} Rh6 {[%emt 0:0:19]} 32. Kb1 {[%emt 0:3:9]} Rf7 {[%emt 0:0:42]} 33. Qg4+ {[%emt 0:0:29]} Kh7 {[%emt 0:0:58]} 34. Bxf6 {[%emt 0:0:26]} Nxf6 {[%emt 0:2:5]} 35. Qf5+ {[%emt 0:0:9]} Kg7 {[%emt 0:0:12]} 36. g4 {[%emt 0:2:12]} Bd7 {[%emt 0:1:25]} 37. Qg5+ {[%emt 0:1:11]} Kh7 {[%emt 0:0:1]} 38. Rd6 {[%emt 0:1:59]} Rg7 {[%emt 0:2:22]} 39. Qf4 {[%emt 0:0:43]} Rxg4 {[%emt 0:3:35]} 40. Rxd7+ {[%emt 0:0:18]} Nxd7 {[%emt 0:0:17]} 41. Qxg4 {[%emt 0:30:16]} Nf6 {[%emt 0:30:38]} 42. Qf5+ {[%emt 0:0:18]} Kg7 {[%emt 0:0:22]} 43. Qf3 {[%emt 0:0:50]} Nxh5 {[%emt 0:0:46]} 44. Qb7+ {[%emt 0:0:9]} Kg8 {[%emt 0:0:42]} 45. Ka2 {[%emt 0:0:8]} Ng7 {[%emt 0:0:26]} 46. Kb3 {[%emt 0:0:33]} Ne8 {[%emt 0:0:0]} 47. c3 {[%emt 0:0:0]} Kf8 {[%emt 0:0:0]} 48. Kb4 {[%emt 0:0:0]} Re6 {[%emt 0:0:0]} 49. b3 {[%emt 0:0:0]} Ng7 {[%emt 0:0:0]} 50. a4 {[%emt 0:0:0]} bxa4 {[%emt 0:0:0]} 51. Kxa4 {[%emt 0:0:0]} Nf5 {[%emt 0:0:0]} 52. b4 {[%emt 0:0:0]} Ne7 {[%emt 0:0:0]} 53. c4 {[%emt 0:0:0]} Ke8 {[%emt 0:0:0]} 54. c5 {[%emt 0:0:0]} Kd8 {[%emt 0:0:0]} 55. Qf3 {[%emt 0:0:0]} Kd7 {[%emt 0:0:0]} 56. Qh3 {[%emt 0:0:0]} Nc8 {[%emt 0:0:0]} 57. Kb3 {[%emt 0:0:0]} Ne7 {[%emt 0:0:0]} 58. Kc4 {[%emt 0:0:0]} Nc6 {[%emt 0:0:0]} 59. Qf5 {[%emt 0:0:0]} Ne7 {[%emt 0:0:0]} 60. Qg4 {[%emt 0:0:0]} Nc6 {[%emt 0:0:0]} 61. Qh3 {[%emt 0:0:0]} Ke7 {[%emt 0:0:0]} 62. Qh7+ {[%emt 0:0:0]} Kf6 {[%emt 0:0:0]} 63. Qb7 {[%emt 0:0:0]} Ne7 {[%emt 0:0:0]} 64. Qa8 {[%emt 0:0:0]} Kf7 {[%emt 0:0:0]} 65. Kb3 {[%emt 0:0:0]} Rf6 {[%emt 0:0:0]} 66. Ka4 {[%emt 0:0:0]} Re6 {[%emt 0:0:0]} 67. Qb7 {[%emt 0:3:6]} Ke8 {[%emt 0:0:0]} 68. Qf3 {[%emt 0:1:47]} Rc6 {[%emt 0:3:36]} 69. Ka5 {[%emt 0:1:54]} Kd7 {[%emt 0:1:9]} 70. Qf8 {[%emt 0:3:12]} Rg6 {[%emt 0:0:40]} 71. Qa8 {[%emt 0:4:47]} Rc6 {[%emt 0:1:47]} 72. Qb7+ {[%emt 0:0:44]} Kd8 {[%emt 0:0:22]} 73. Ka4 {[%emt 0:0:0]} Rg6 {[%emt 0:0:0]} 74. Qf3 {[%emt 0:0:0]} Rc6 {[%emt 0:0:0]} 75. Kb3 {[%emt 0:0:0]} Rg6 {[%emt 0:0:0]} 76. Kc4 {[%emt 0:0:0]} Rc6 {[%emt 0:0:0]} 77. Qh3 {[%emt 0:0:0]} Rg6 {[%emt 0:0:0]} 78. b5 {[%emt 0:0:0]} axb5+ {[%emt 0:0:0]} 79. Kxb5 {[%emt 0:0:0]} Ke8 {[%emt 0:0:0]} 80. Qh5 {[%emt 0:0:0]} Kd7 {[%emt 0:0:0]} 81. Qe5 {[%emt 0:0:0]} Kd8 {[%emt 0:0:0]} 82. Qb8+ {[%emt 0:0:0]} Kd7 {[%emt 0:0:0]} 83. Qa8 {[%emt 0:0:0]} Rf6 {[%emt 0:0:0]} 84. Kc4 {[%emt 0:0:0]} Rg6 {[%emt 0:0:0]} 85. Kd4 {[%emt 0:0:0]} Rc6 {[%emt 0:0:0]} 86. Qa4 {[%emt 0:0:0]} Kd8 {[%emt 0:0:0]} 87. Qc4 {[%emt 0:0:0]} Rg6 {[%emt 0:0:0]} 88. Ke5 {[%emt 0:0:0]} Nc6+ {[%emt 0:0:0]} 89. Kf5 {[%emt 0:0:17]} Ne7+ {[%emt 0:0:0]} 90. Kf4 {[%emt 0:0:26]} Rc6 {[%emt 0:0:0]} 91. Ke5 {[%emt 0:0:34]} Ng6+ {[%emt 0:0:0]} 92. Ke4 {[%emt 0:1:9]} Ne7 {[%emt 0:0:0]} 93. Qb5 {[%emt 0:0:50]} Rg6 {[%emt 0:0:0]} 94. Qb8+ {[%emt 0:0:15]} Kd7 {[%emt 0:0:0]} 95. Qd6+ {[%emt 0:0:54]} Rxd6 {[%emt 0:0:0]} 96. cxd6 {[%emt 0:0:1]} Kxd6 {[%emt 0:0:0]} 1/2-1/2

[Event "56th Biel Festival MTO 2023"]
[White "Prieb,Robert"]
[Black "Asllani,Dorian"]
[Site "Biel"]
[Round "8.36"]
[Annotator "ChessBase"]
[Result "1/2-1/2"]
[Date "2023.07.26"]
[WhiteElo "2060"]
[BlackElo "2272"]
[PlyCount "103"]
[TimeControl "60"]

1. d4 {[%emt 0:0:0]} d5 {[%emt 0:0:0]} 2. c4 {[%emt 0:0:0]} e6 {[%emt 0:0:0]} 3. Nf3 {[%emt 0:0:0]} Nf6 {[%emt 0:0:0]} 4. Bg5 {[%emt 0:0:0]} Nbd7 {[%emt 0:0:0]} 5. e3 {[%emt 0:0:0]} c6 {[%emt 0:0:0]} 6. Nc3 {[%emt 0:0:0]} Qa5 {[%emt 0:0:0]} 7. Nd2 {[%emt 0:0:0]} dxc4 {[%emt 0:0:0]} 8. Bxf6 {[%emt 0:0:0]} Nxf6 {[%emt 0:0:0]} 9. Nxc4 {[%emt 0:0:0]} Qc7 {[%emt 0:0:0]} 10. Rc1 {[%emt 0:0:0]} Be7 {[%emt 0:0:7]} 11. g3 {[%emt 0:0:0]} O-O {[%emt 0:0:8]} 12. Bg2 {[%emt 0:0:0]} Rd8 {[%emt 0:3:25]} 13. O-O {[%emt 0:0:0]} Nd5 {[%emt 0:21:57]} 14. Qb3 {[%emt 0:7:0]} Bd7 {[%emt 0:17:15]} 15. Rfd1 {[%emt 0:14:34]} Be8 {[%emt 0:9:56]} 16. e4 {[%emt 0:17:54]} Nxc3 {[%emt 0:10:56]} 17. Rxc3 {[%emt 0:2:56]} b5 {[%emt 0:9:6]} 18. Ne3 {[%emt 0:4:59]} Qb6 {[%emt 0:5:33]} 19. d5 {[%emt 0:4:49]} Bf6 {[%emt 0:6:30]} 20. Rcd3 {[%emt 0:3:3]} c5 {[%emt 0:3:40]} 21. dxe6 {[%emt 0:7:15]} fxe6 {[%emt 0:5:54]} 22. Rxd8 {[%emt 0:19:28]} Rxd8 {[%emt 0:0:13]} 23. Rxd8 {[%emt 0:0:18]} Bxd8 {[%emt 0:0:10]} 24. e5 {[%emt 0:1:3]} Bc7 {[%emt 0:0:32]} 25. f4 {[%emt 0:1:4]} c4 {[%emt 0:1:12]} 26. Qc3 {[%emt 0:0:15]} b4 {[%emt 0:1:9]} 27. Qd2 {[%emt 0:0:34]} Qc5 {[%emt 0:0:40]} 28. Kf2 {[%emt 0:5:54]} Bb6 {[%emt 0:0:6]} 29. Be4 {[%emt 0:0:30]} c3 {[%emt 0:0:32]} 30. bxc3 {[%emt 0:0:55]} bxc3 {[%emt 0:0:6]} 31. Qd3 {[%emt 0:1:13]} c2 {[%emt 0:0:41]} 32. Bxh7+ {[%emt 0:0:16]} Kh8 {[%emt 0:0:59]} 33. Qxc2 {[%emt 0:0:13]} Qxe3+ {[%emt 0:0:2]} 34. Kg2 {[%emt 0:0:12]} Qf2+ {[%emt 0:4:21]} 35. Qxf2 {[%emt 0:0:7]} Bxf2 {[%emt 0:1:18]} 36. Kxf2 {[%emt 0:0:2]} Kxh7 {[%emt 0:0:9]} 37. g4 {[%emt 0:0:38]} Kg6 {[%emt 0:1:27]} 38. Kg3 {[%emt 0:0:48]} Ba4 {[%emt 0:0:55]} 39. h4 {[%emt 0:0:52]} Bd1 {[%emt 0:0:25]} 40. Kh3 {[%emt 0:4:59]} Be2 {[%emt 0:0:34]} 41. Kg3 {[%emt 0:30:12]} a5 {[%emt 0:3:13]} 42. a3 {[%emt 0:0:0]} a4 {[%emt 0:10:4]} 43. Kh3 {[%emt 0:0:0]} Kf7 {[%emt 0:0:23]} 44. h5 {[%emt 0:0:0]} Ke7 {[%emt 0:7:11]} 45. Kh4 {[%emt 0:0:0]} Kd7 {[%emt 0:1:22]} 46. Kg5 {[%emt 0:0:0]} Kc6 {[%emt 0:1:37]} 47. f5 {[%emt 0:0:0]} exf5 {[%emt 0:2:1]} 48. gxf5 {[%emt 0:0:0]} Kd5 {[%emt 0:1:33]} 49. f6 {[%emt 0:0:0]} gxf6+ {[%emt 0:0:23]} 50. exf6 {[%emt 0:0:0]} Ke6 {[%emt 0:0:11]} 51. h6 {[%emt 0:0:0]} Bd3 {[%emt 0:0:6]} 52. Kf4 {[%emt 0:0:0]} 1/2-1/2

[Event "56th Biel Festival MTO 2023"]
[White "Abdulrahman Mohammad,Al Taher"]
[Black "Malli,Suvirr"]
[Site "Biel"]
[Round "8.37"]
[Annotator "ChessBase"]
[Result "1-0"]
[Date "2023.07.26"]
[WhiteElo "2258"]
[BlackElo "2094"]
[PlyCount "193"]
[TimeControl "60"]

1. d4 {[%emt 0:0:0]} d5 {[%emt 0:0:0]} 2. c4 {[%emt 0:0:0]} c6 {[%emt 0:0:0]} 3. cxd5 {[%emt 0:0:0]} cxd5 {[%emt 0:0:0]} 4. Bg5 {[%emt 0:0:0]} Nc6 {[%emt 0:0:0]} 5. Nc3 {[%emt 0:0:0]} Nf6 {[%emt 0:0:0]} 6. Bxf6 {[%emt 0:0:0]} gxf6 {[%emt 0:0:0]} 7. e3 {[%emt 0:0:0]} Bg7 {[%emt 0:0:0]} 8. Bd3 {[%emt 0:2:58]} e5 {[%emt 0:13:14]} 9. Qb3 {[%emt 0:6:38]} Ne7 {[%emt 0:3:48]} 10. Nge2 {[%emt 0:10:23]} h5 {[%emt 0:7:25]} 11. Rd1 {[%emt 0:7:38]} e4 {[%emt 0:7:10]} 12. Bb5+ {[%emt 0:4:23]} Kf8 {[%emt 0:4:50]} 13. Nf4 {[%emt 0:8:29]} Be6 {[%emt 0:1:41]} 14. O-O {[%emt 0:3:17]} h4 {[%emt 0:2:32]} 15. Be2 {[%emt 0:7:24]} b6 {[%emt 0:7:33]} 16. f3 {[%emt 0:3:16]} exf3 {[%emt 0:7:27]} 17. Bxf3 {[%emt 0:0:52]} Bh6 {[%emt 0:1:14]} 18. Nxe6+ {[%emt 0:7:50]} fxe6 {[%emt 0:0:11]} 19. e4 {[%emt 0:0:12]} Rc8 {[%emt 0:3:29]} 20. exd5 {[%emt 0:1:59]} Nf5 {[%emt 0:0:29]} 21. dxe6 {[%emt 0:2:50]} Be3+ {[%emt 0:0:37]} 22. Rf2 {[%emt 0:0:28]} Bxf2+ {[%emt 0:16:42]} 23. Kxf2 {[%emt 0:0:8]} Qd6 {[%emt 0:1:21]} 24. Qb5 {[%emt 0:10:9]} Qf4 {[%emt 0:8:15]} 25. Qd7 {[%emt 0:8:6]} Rc7 {[%emt 0:5:24]} 26. Nd5 {[%emt 0:2:25]} Rxd7 {[%emt 0:1:53]} 27. Nxf4 {[%emt 0:0:1]} Rg7 {[%emt 0:0:50]} 28. Be4 {[%emt 0:3:21]} Nd6 {[%emt 0:6:41]} 29. Ng6+ {[%emt 0:4:2]} Kg8 {[%emt 0:0:6]} 30. Nxh8 {[%emt 0:3:21]} Nxe4+ {[%emt 0:0:8]} 31. Ke3 {[%emt 0:0:4]} Nd6 {[%emt 0:0:25]} 32. Nf7 {[%emt 0:0:7]} Nxf7 {[%emt 0:0:34]} 33. exf7+ {[%emt 0:0:15]} Kxf7 {[%emt 0:0:6]} 34. Rd2 {[%emt 0:0:58]} Ke6 {[%emt 0:0:38]} 35. d5+ {[%emt 0:0:35]} Kd6 {[%emt 0:0:20]} 36. Kf4 {[%emt 0:1:33]} Rg5 {[%emt 0:0:12]} 37. a3 {[%emt 0:1:40]} a5 {[%emt 0:0:52]} 38. a4 {[%emt 0:1:3]} Re5 {[%emt 0:0:21]} 39. b3 {[%emt 0:0:39]} Rg5 {[%emt 0:0:7]} 40. Ke4 {[%emt 0:1:30]} Rh5 {[%emt 0:2:44]} 41. Kf3 {[%emt 0:0:0]} Re5 {[%emt 0:0:0]} 42. Rd3 {[%emt 0:0:0]} Rg5 {[%emt 0:0:0]} 43. Rd4 {[%emt 0:3:24]} Rf5+ {[%emt 0:0:0]} 44. Kg4 {[%emt 0:3:53]} Rf2 {[%emt 0:0:0]} 45. g3 {[%emt 0:3:4]} f5+ {[%emt 0:15:46]} 46. Kxh4 {[%emt 0:0:52]} Rxh2+ {[%emt 0:0:6]} 47. Kg5 {[%emt 0:0:4]} Rg2 {[%emt 0:0:16]} 48. Kf4 {[%emt 0:0:14]} Rf2+ {[%emt 0:0:30]} 49. Ke3 {[%emt 0:0:9]} Rb2 {[%emt 0:1:6]} 50. Rd3 {[%emt 0:0:6]} Rg2 {[%emt 0:2:52]} 51. Kd4 {[%emt 0:1:17]} Re2 {[%emt 0:2:22]} 52. Kc4 {[%emt 0:4:24]} Kc7 {[%emt 0:4:22]} 53. d6+ {[%emt 0:0:35]} Kc6 {[%emt 0:0:20]} 54. d7 {[%emt 0:3:27]} Rc2+ {[%emt 0:0:26]} 55. Kd4 {[%emt 0:0:5]} Kxd7 {[%emt 0:0:8]} 56. Ke5+ {[%emt 0:0:3]} Ke7 {[%emt 0:0:29]} 57. Kxf5 {[%emt 0:0:6]} Rc5+ {[%emt 0:8:50]} 58. Ke4 {[%emt 0:1:16]} Ke6 {[%emt 0:0:40]} 59. Re3 {[%emt 0:2:29]} Rd5 {[%emt 0:1:20]} 60. Rc3 {[%emt 0:0:52]} Rd6 {[%emt 0:0:48]} 61. Rd3 {[%emt 0:1:34]} Rc6 {[%emt 0:0:32]} 62. Rd5 {[%emt 0:0:12]} Rc3 {[%emt 0:0:36]} 63. Rb5 {[%emt 0:0:5]} Rxg3 {[%emt 0:0:19]} 64. Rxb6+ {[%emt 0:0:5]} Kd7 {[%emt 0:0:19]} 65. Kd4 {[%emt 0:0:8]} Kc7 {[%emt 0:0:50]} 66. Rb5 {[%emt 0:0:6]} Kc6 {[%emt 0:0:32]} 67. Kc4 {[%emt 0:0:6]} Rg4+ {[%emt 0:0:11]} 68. Kc3 {[%emt 0:0:7]} Rg3+ {[%emt 0:0:10]} 69. Kb2 {[%emt 0:0:6]} Rg2+ {[%emt 0:0:25]} 70. Ka3 {[%emt 0:0:4]} Rg4 {[%emt 0:0:27]} 71. Rxa5 {[%emt 0:0:7]} Kb6 {[%emt 0:0:9]} 72. Rh5 {[%emt 0:0:13]} Rf4 {[%emt 0:0:15]} 73. Rh3 {[%emt 0:0:51]} Rg4 {[%emt 0:0:28]} 74. b4 {[%emt 0:0:8]} Rg6 {[%emt 0:0:6]} 75. a5+ {[%emt 0:0:23]} Kb5 {[%emt 0:0:14]} 76. Rh5+ {[%emt 0:0:9]} Ka6 {[%emt 0:0:4]} 77. Ka4 {[%emt 0:0:5]} Rg4 {[%emt 0:0:8]} 78. Rh6+ {[%emt 0:0:20]} Ka7 {[%emt 0:0:6]} 79. Rc6 {[%emt 0:2:43]} Rh4 {[%emt 0:0:47]} 80. Kb5 {[%emt 0:0:34]} Rh7 {[%emt 0:0:10]} 81. a6 {[%emt 0:1:8]} Rh5+ {[%emt 0:0:0]} 82. Rc5 {[%emt 0:0:0]} Rh6 {[%emt 0:0:0]} 83. Rc7+ {[%emt 0:0:0]} Kb8 {[%emt 0:0:0]} 84. Rc6 {[%emt 0:0:0]} Rh7 {[%emt 0:0:0]} 85. Kb6 {[%emt 0:0:0]} Rb7+ {[%emt 0:0:0]} 86. Ka5 {[%emt 0:0:0]} Rh7 {[%emt 0:0:0]} 87. b5 {[%emt 0:0:0]} Rh5 {[%emt 0:0:0]} 88. Kb6 {[%emt 0:0:0]} Rh8 {[%emt 0:0:0]} 89. Rc5 {[%emt 0:0:0]} Rh6+ {[%emt 0:0:0]} 90. Ka5 {[%emt 0:0:0]} Rh1 {[%emt 0:0:0]} 91. b6 {[%emt 0:0:0]} Ra1+ {[%emt 0:0:0]} 92. Kb5 {[%emt 0:0:0]} Rb1+ {[%emt 0:0:0]} 93. Kc6 {[%emt 0:0:0]} Ra1 {[%emt 0:0:0]} 94. a7+ {[%emt 0:0:0]} Ka8 {[%emt 0:0:0]} 95. b7+ {[%emt 0:0:0]} Kxa7 {[%emt 0:0:0]} 96. Kc7 {[%emt 0:0:0]} Rb1 {[%emt 0:0:0]} 97. Ra5# {[%emt 0:0:0]} 1-0